fUSD/lending_fUSD_20240217
["ID","MTS","AMOUNT","RATE_DAILY","PERIOD"]
[314316916,1708179037927,-156.05047823,0.00022798,2]
[314316917,1708179037937,-150.9385784,0.00022799,2]
[314316918,1708179037946,-150.9385784,0.00022799,2]
[314316919,1708179037956,-150.9385784,0.00022799,2]
[314316920,1708179037965,-780.92227861,0.00022799,2]
[314316921,1708179037976,-1704.77468899,0.00022799,2]
[314316922,1708179037994,-1101.5130324,0.00022799,2]
[314316923,1708179038003,-515.28,0.00022799,2]
[314316924,1708179038013,-714.83,0.00022799,2]
[314316925,1708179038022,-714.88427398,0.000228,2]
[314316926,1708179038032,-203.45903132,0.000228,2]
[314316927,1708179038041,-10767.104,0.000228,2]
[314316928,1708179038050,-151.41361236,0.00022804,2]
[314316929,1708179038067,-151.41361236,0.00022825,2]
[314316930,1708179038081,-151.41361236,0.00022846,2]
[314316931,1708179038091,-203.4590313,0.0002285,2]
[314316932,1708179038100,-151.41361236,0.00022867,2]
[314316933,1708179038110,-151.41361236,0.00022888,2]
[314316934,1708179038119,-351.8664053,0.00022898,2]
[314316935,1708179038129,-155.0,0.00022898,2]
[314316936,1708179038138,-776.29821308,0.00022899,2]
[314316937,1708179038148,-621.8161,0.000229,2]
[314316938,1708179038159,-118641.7245,0.000229,2]
[314316939,1708179038173,-1114.90861327,0.000229,2]
[314316940,1708179038183,-181.58261503,0.000229,2]
[314316941,1708179038194,-203.4590313,0.000229,2]
[314316942,1708179038204,-151.41361236,0.00022909,2]
[314316943,1708179038214,-151.41361236,0.0002293,2]
[314316944,1708179038224,-196.73242146,0.0002299,2]
[314316945,1708179038234,-196.73242146,0.0002299,2]
[314316946,1708179038243,-196.73242146,0.0002299,2]
[314316947,1708179038252,-177.55942042,0.00022996,2]
[314316948,1708179038262,-861.4653391,0.00022996,2]
[314316949,1708179038271,-2360.74293066,0.00022996,2]
[314316950,1708179038282,-225.30506265,0.00022996,2]
[314316951,1708179038292,-176.57024904,0.00022996,2]
[314316953,1708179038301,-843342.91718889,0.00023,2]
[314316954,1708179038311,-2219967.24756825,0.00023,2]
[314316955,1708179038320,-177.43,0.00023096,2]
[314316956,1708179038329,-164.11335802,0.00023096,2]
[314316957,1708179038338,-23963.24308147,0.0002313,2]
[314316958,1708179038348,-1831.02,0.00023142,2]
[314316959,1708179038357,-180.43,0.00023159,2]
[314316960,1708179038366,-20866.08317019,0.000232,2]
[314316961,1708179038375,-500.0,0.00023243,2]
[314316962,1708179038385,-1042.2,0.00023243,2]
[314316963,1708179038394,-1324.72,0.00023248,2]
[314316964,1708179038403,-1831.02,0.00023263,2]
[314316965,1708179038413,-200.0,0.00023326,2]
[314316966,1708179038422,-1831.02,0.00023385,2]
[314316967,1708179038431,-250.0,0.00023406,2]
[314316969,1708179038440,-1831.02,0.00023507,2]
[314316971,1708179038449,-1831.02,0.00023629,2]
[314316972,1708179038459,-177.43,0.00023644,2]
[314316973,1708179038468,-278.49,0.00023645,2]
[314316974,1708179038478,-7789.89,0.00023657,2]
[314316975,1708179038487,-1831.02,0.00023751,2]
[314316976,1708179038497,-1831.02,0.00023872,2]
[314316977,1708179038510,-1831.02,0.00023994,2]
[314316978,1708179038520,-1297.4,0.00024005,2]
[314316979,1708179038531,-858.2,0.00024115,2]
[314316980,1708179038541,-1831.02,0.00024116,2]
[314316981,1708179038551,-177.43,0.00024192,2]
[314316982,1708179038561,-1831.02,0.00024238,2]
[314316983,1708179038571,-316.55789385,0.0002425,2]
[314316984,1708179038580,-167.33,0.00024322,2]
[314316985,1708179038589,-1324.72,0.00024355,2]
[314316986,1708179038599,-1831.02,0.0002436,2]
[314316987,1708179038608,-4589.22,0.00024384,2]
[314316988,1708179038618,-1831.02,0.00024481,2]
[314316989,1708179038628,-180.43,0.00024529,2]
[314316990,1708179038638,-1852.42,0.00024537,2]
[314316991,1708179038648,-1831.02,0.00024603,2]
[314316992,1708179038658,-500.0,0.00024658,2]
[314316993,1708179038668,-250.0,0.00024658,2]
[314316994,1708179038677,-7777.34,0.00024665,2]
[314316995,1708179038687,-1831.02,0.00024725,2]
[314316996,1708179038697,-177.43,0.0002474,2]
[314316997,1708179038706,-1831.02,0.00024847,2]
[314316998,1708179038716,-155.46,0.0002485,2]
[314316999,1708179038726,-278.49,0.0002489,2]
[314317000,1708179038735,-155.46,0.00024931,2]
[314317001,1708179038745,-858.2,0.00024967,2]
[314317002,1708179038755,-1831.02,0.00024969,2]
[314317003,1708179038764,-1709.27742184,0.00025,2]
[314317004,1708179038776,-1593.45591278,0.00025,2]
[314317005,1708179038786,-2163.16980064,0.00025,2]
[314317006,1708179038795,-155.46,0.00025012,2]
[314317007,1708179038805,-1114.90861327,0.00025029,2]
[314317008,1708179038815,-210.0,0.00025078,2]
[314317009,1708179038825,-34066.21979568,0.0002509,2]
[314317010,1708179038835,-5677.60317644,0.0002509,2]
[314317011,1708179038845,-1831.02,0.00025091,2]
[314317012,1708179038855,-155.46,0.00025093,2]
[314317013,1708179038864,-300.0,0.00025143,2]
[314317014,1708179038873,-155.46,0.00025174,2]
[314317015,1708179038883,-1831.02,0.00025212,2]
[314317016,1708179038893,-155.46,0.00025255,2]
[314317017,1708179038902,-177.43,0.00025288,2]
[314317018,1708179038911,-7789.89,0.00025301,2]
[314317019,1708179038920,-235.03,0.00025307,10]
[314317020,1708179038930,-1831.02,0.00025334,2]
[314317021,1708179038942,-155.46,0.00025336,2]
[314317022,1708179038952,-181.58261503,0.000254,2]
[314317023,1708179038961,-155.46,0.00025417,2]
[314317024,1708179038970,-1831.02,0.00025456,2]
[314317025,1708179038983,-1324.72,0.00025462,2]
[314317026,1708179038993,-155.46,0.00025498,2]
[314317027,1708179039002,-859.16,0.0002556,2]
[314317028,1708179039011,-155.46,0.00025579,2]
[314317029,1708179039022,-409.54,0.00025644,2]
[314317030,1708179039033,-155.46,0.0002566,2]
[314317031,1708179039042,-155.46,0.00025741,2]
[314317032,1708179039052,-858.2,0.0002582,2]
[314317033,1708179039061,-155.46,0.00025822,2]
[314317034,1708179039072,-177.43,0.00025836,2]
[314317035,1708179039081,-180.43,0.00025899,2]
[314317036,1708179039092,-155.46,0.00025902,2]
[314317037,1708179039102,-155.46,0.00025983,2]
[314317038,1708179039111,-800.0,0.00026055,2]
[314317039,1708179039121,-155.46,0.00026064,2]
[314317040,1708179039131,-150.0,0.00026079,2]
[314317041,1708179039140,-278.49,0.00026134,2]
[314317042,1708179039149,-155.46,0.00026145,2]
[314317043,1708179039160,-1297.4,0.00026269,2]
[314317044,1708179039169,-17358.24285998,0.000263,2]
[314317045,1708179039179,-177.43,0.00026384,2]
[314317046,1708179039188,-23256.91513859,0.000264,2]
[314317047,1708179039198,-300.0,0.00026513,2]
[314317048,1708179039208,-1324.72,0.00026569,2]
[314317049,1708179039217,-858.2,0.00026673,2]
[314317050,1708179039230,-177.43,0.00026932,2]
[314317051,1708179039239,-7789.89,0.00026945,2]
[314317052,1708179039248,-1114.90861327,0.00027157,3]
[314317053,1708179039258,-29001.329238,0.000272,2]
[314317054,1708179039267,-278.49,0.00027379,2]
[314317055,1708179039278,-155.0,0.00027397,2]
[314317056,1708179039288,-150.0,0.00027397,2]
[314317057,1708179039299,-3000.0,0.00027397,2]
[314317058,1708179039309,-3000.0,0.00027397,2]
[314317059,1708179039319,-3000.0,0.00027397,2]
[314317060,1708179039329,-3000.0,0.00027397,2]
[314317061,1708179039338,-3000.0,0.00027397,2]
[314317062,1708179039349,-3000.0,0.00027397,2]
[314317063,1708179039358,-3000.0,0.00027397,2]
[314317064,1708179039368,-3000.0,0.00027397,2]
[314317065,1708179039377,-3000.0,0.00027397,2]
[314317066,1708179039387,-3000.0,0.00027397,2]
[314317067,1708179039396,-3000.0,0.00027397,2]
[314317068,1708179039406,-3000.0,0.00027397,2]
[314317069,1708179039416,-3000.0,0.00027397,2]
[314317070,1708179039425,-3000.0,0.00027397,2]
[314317071,1708179039434,-4842.90253915,0.00027397,2]
[314317072,1708179039443,-302.81215118,0.00027397,5]
[314317073,1708179039453,-1049.79,0.00027397,2]
[314317074,1708179039462,-31936.96,0.00027397,2]
[314317075,1708179039472,-177.43,0.0002748,2]
[314317076,1708179039481,-8256.37090165,0.000275,2]
[314317077,1708179039492,-858.2,0.00027526,2]
[314317078,1708179039502,-1049.79,0.00027556,2]
[314317079,1708179039514,-1049.79,0.00027714,2]
[314317080,1708179039524,-1049.79,0.00027872,2]
[314317081,1708179039537,-181.58261503,0.000279,2]
[314317082,1708179039547,-150.0,0.00027945,2]
[314317083,1708179039557,-1488066.56664808,0.00028,2]
[314317084,1708179039567,-3588.10246471,0.00028,2]
[314317085,1708179039577,-2867.28,0.00028,2]
[314317086,1708179039587,-152.59,0.00028019,2]
[314317087,1708179039596,-177.43,0.00028028,2]
[314317088,1708179039606,-1049.79,0.0002803,2]
[314317089,1708179039820,-213.29,0.00028054,2]
[314317090,1708179039831,-109297.53401625,0.000281,2]
[314317091,1708179039840,-1049.79,0.00028189,2]
[314317092,1708179039849,-1000.0,0.00028251,2]
[314317093,1708179039858,-167.33,0.00028336,2]
[314317094,1708179039868,-1049.79,0.00028347,2]
[314317095,1708179039876,-858.2,0.00028379,2]
[314317096,1708179039886,-150.0,0.00028493,2]
[314317097,1708179039895,-800.0,0.00028493,2]
[314317098,1708179039904,-168515.4,0.000285,2]
[314317099,1708179039913,-1049.79,0.00028505,2]
[314317100,1708179039922,-1297.4,0.00028532,2]
[314317101,1708179039931,-346.73926615,0.00028576,2]
[314317102,1708179039940,-7789.89,0.00028589,2]
[314317103,1708179039949,-278.49,0.00028623,2]
[314317104,1708179039958,-1049.79,0.00028664,2]
[314317105,1708179039968,-155.0,0.00028767,2]
[314317106,1708179039977,-1049.79,0.00028822,2]
[314317107,1708179039986,-150.0,0.00029041,2]
[314317108,1708179039999,-858.2,0.00029232,2]
[314317109,1708179040008,-1114.90861327,0.00029286,4]
[314317110,1708179040017,-150.0,0.00029589,2]
[314317111,1708179040028,-278.49,0.00029868,2]
[314317112,1708179040037,-314152.49683934,0.0003,2]
[314317113,1708179040046,-71118.16699109,0.0003,4]
[314317114,1708179040055,-4481.09295103,0.0003,2]
[314317115,1708179040064,-205.0,0.0003,2]
[314317116,1708179040073,-1861.66346308,0.0003,4]
[314317117,1708179040083,-1177.58646698,0.0003,4]
[314317118,1708179040091,-205.0,0.0003,2]
[314317119,1708179040100,-687.62801211,0.000301,2]
[314317120,1708179040109,-156.4,0.00030137,2]
[314317121,1708179040118,-155.0,0.00030137,2]
[314317122,1708179040127,-150.0,0.00030137,2]
[314317123,1708179040136,-7789.89,0.00030233,2]
[314317124,1708179040145,-861.46533908,0.000304,2]
[314317125,1708179040154,-2360.74293064,0.000304,2]
[314317126,1708179040164,-225.30506264,0.000304,2]
[314317127,1708179040172,-150.0,0.00030685,2]
[314317128,1708179040181,-1297.4,0.00030796,2]
[314317129,1708179040190,-156.4,0.0003098,2]
[314317130,1708179040200,-278.49,0.00031112,2]
[314317131,1708179040209,-150.0,0.00031233,2]
[314317132,1708179040218,-1114.90861327,0.00031414,5]
[314317133,1708179040227,-4645.7208012,0.0003143,4]
[314317134,1708179040236,-914.74,0.00031472,2]
[314317135,1708179040245,-155.0,0.00031507,2]
[314317136,1708179040254,-168.79,0.00031644,2]
[314317137,1708179040263,-178.83894219,0.00031781,2]
[314317138,1708179040272,-1000.0,0.00031782,2]
[314317139,1708179040283,-278641.111832,0.000318,3]
[314317140,1708179040292,-156.4,0.00031823,2]
[314317141,1708179040301,-362.0089902,0.00032,33]
[314317142,1708179040310,-166.34,0.00032026,2]
[314317143,1708179040320,-412.37702673,0.00032125,2]
[314317144,1708179040329,-24626.35161863,0.00032354,2]
[314317145,1708179040338,-278.49,0.00032357,2]
[314317146,1708179040348,-156.4,0.00032666,2]
[314317147,1708179040357,-37326.86,0.00032877,2]
[314317148,1708179040367,-155.0,0.00032877,2]
[314317149,1708179040376,-204.65,0.0003288,2]
[314317150,1708179040385,-8000.0,0.000329,2]
[314317151,1708179040394,-150.73300819,0.00032967,2]
[314317152,1708179040403,-1262.81416688,0.00033,2]
[314317153,1708179040411,-1297.4,0.0003306,2]
[314317154,1708179040420,-1000.0,0.00033198,2]
[314317156,1708179040430,-156.4,0.00033509,2]
[314317157,1708179040439,-1114.90861327,0.00033543,6]
[314317158,1708179040448,-278.49,0.00033601,2]
[314317159,1708179040457,-153.23266036,0.000339,2]
[314317160,1708179040466,-153.23266023,0.000339,2]
[314317161,1708179040476,-153.23266023,0.000339,2]
[314317162,1708179040485,-153.23266023,0.000339,2]
[314317163,1708179040495,-153.23266023,0.000339,2]
[314317164,1708179040504,-153.23266023,0.000339,2]
[314317165,1708179040513,-153.23266023,0.000339,2]
[314317166,1708179040522,-600.0,0.00033985,2]
[314317167,1708179040532,-7548.0,0.000342,2]
[314317168,1708179040541,-155.0,0.00034247,2]
[314317169,1708179040551,-156.4,0.00034352,2]
[314317170,1708179040560,-599.76148,0.0003452,2]
[314317171,1708179040569,-5997.614804,0.0003452,2]
[314317172,1708179040578,-1544.952881,0.0003452,2]
[314317173,1708179040587,-4798.091843,0.0003452,2]
[314317174,1708179040596,-9596.183687,0.0003452,2]
[314317175,1708179040605,-1544.952881,0.0003452,2]
[314317176,1708179040615,-2998.807402,0.0003452,2]
[314317177,1708179040625,-482.797775,0.0003452,2]
[314317178,1708179040634,-1093.884474,0.0003452,2]
[314317179,1708179040644,-6656.05,0.00034521,2]
[314317180,1708179040653,-153.23266023,0.00034776,2]
[314317181,1708179040662,-899.64222,0.00034794,2]
[314317182,1708179040671,-8996.422206,0.00034794,2]
[314317183,1708179040681,-2317.429322,0.00034794,2]
[314317184,1708179040690,-7197.137765,0.00034794,2]
[314317185,1708179040700,-14394.27553,0.00034794,2]
[314317186,1708179040709,-2317.429322,0.00034794,2]
[314317187,1708179040719,-4498.211103,0.00034794,2]
[314317188,1708179040728,-724.196663,0.00034794,2]
[314317189,1708179040737,-1640.826712,0.00034794,2]
[314317190,1708179040746,-386.07065335,0.0003487,14]
[314317191,1708179040755,-1199.522961,0.00034931,2]
[314317192,1708179040765,-11995.229609,0.00034931,2]
[314317193,1708179040774,-3089.905763,0.00034931,2]
[314317194,1708179040784,-9596.183687,0.00034931,2]
[314317195,1708179040794,-19192.367374,0.00034931,2]
[314317196,1708179040803,-3089.905763,0.00034931,2]
[314317197,1708179040813,-5997.614804,0.00034931,2]
[314317198,1708179040823,-965.595551,0.00034931,2]
[314317199,1708179040832,-2187.768949,0.00034931,2]
[314317200,1708179040842,-4463.03736822,0.00035,30]
[314317201,1708179040851,-12938.96551711,0.00035,2]
[314317202,1708179040860,-15872.75458595,0.00035,7]
[314317203,1708179040870,-230.08544777,0.00035,7]
[314317204,1708179040879,-38661.45884693,0.00035,4]
[314317205,1708179040888,-398.90005479,0.00035,2]
[314317206,1708179040897,-418.27758908,0.00035,2]
[314317207,1708179040906,-15663.82651064,0.00035,2]
[314317208,1708179040916,-1499.403701,0.00035068,2]
[314317209,1708179040925,-14994.037011,0.00035068,2]
[314317210,1708179040934,-3862.382204,0.00035068,2]
[314317211,1708179040943,-11995.229609,0.00035068,2]
[314317212,1708179040953,-23990.459218,0.00035068,2]
[314317213,1708179040962,-3862.382204,0.00035068,2]
[314317214,1708179040971,-7497.018505,0.00035068,2]
[314317215,1708179040984,-1206.994439,0.00035068,2]
[314317216,1708179040994,-2734.711187,0.00035068,2]
[314317217,1708179041003,-103343.6539013,0.0003509,2]
[314317218,1708179041012,-156.4,0.00035195,2]
[314317219,1708179041021,-1000.0,0.00035313,2]
[314317220,1708179041030,-1297.4,0.00035324,2]
[314317221,1708179041039,-2099.165182,0.00035342,2]
[314317222,1708179041048,-20991.651816,0.00035342,2]
[314317223,1708179041058,-5407.335086,0.00035342,2]
[314317224,1708179041068,-16793.321453,0.00035342,2]
[314317225,1708179041077,-33586.642905,0.00035342,2]
[314317226,1708179041086,-5407.335086,0.00035342,2]
[314317227,1708179041095,-10495.825908,0.00035342,2]
[314317228,1708179041105,-1689.792215,0.00035342,2]
[314317229,1708179041114,-3828.595662,0.00035342,2]
[314317230,1708179041123,-1652.61,0.00035463,2]
[314317231,1708179041133,-7548.6533092,0.000356,2]
[314317232,1708179041142,-500.0,0.00035616,2]
[314317233,1708179041151,-500.0,0.00035616,2]
[314317234,1708179041160,-500.0,0.00035616,2]
[314317235,1708179041170,-500.0,0.00035616,2]
[314317236,1708179041180,-500.0,0.00035616,2]
[314317237,1708179041189,-500.0,0.00035616,2]
[314317238,1708179041198,-500.0,0.00035616,2]
[314317239,1708179041207,-500.0,0.00035616,2]
[314317240,1708179041216,-500.0,0.00035616,2]
[314317241,1708179041225,-500.0,0.00035616,2]
[314317242,1708179041234,-500.0,0.00035616,2]
[314317243,1708179041244,-500.0,0.00035616,2]
[314317244,1708179041253,-500.0,0.00035616,2]
[314317245,1708179041262,-500.0,0.00035616,2]
[314317246,1708179041271,-500.0,0.00035616,2]
[314317247,1708179041280,-500.0,0.00035616,2]
[314317248,1708179041290,-500.0,0.00035616,2]
[314317249,1708179041299,-500.0,0.00035616,2]
[314317250,1708179041308,-500.0,0.00035616,2]
[314317251,1708179041317,-500.0,0.00035616,2]
[314317252,1708179041326,-4589.22,0.00035616,2]
[314317253,1708179041335,-1500.0,0.00035616,10]
[314317254,1708179041345,-155.0,0.00035617,2]
[314317255,1708179041354,-151.0,0.00035625,120]
[314317256,1708179041362,-1114.90861327,0.00035671,7]
[314317257,1708179041371,-257.77454372,0.000357,2]
[314317258,1708179041380,-6656.05,0.00035798,2]
[314317259,1708179041389,-460.59511204,0.0003591,5]
[314317260,1708179041398,-150.46009333,0.00036,2]
[314317261,1708179041407,-156.4,0.00036038,2]
[314317262,1708179041416,-151.0,0.00036352,30]
[314317263,1708179041425,-45959.99770874,0.00036389,2]
[314317264,1708179041434,-45959.99770874,0.00036389,2]
[314317265,1708179041443,-45959.99770874,0.00036389,2]
[314317266,1708179041452,-45959.99770874,0.00036389,2]
[314317267,1708179041461,-45959.99770874,0.00036389,2]
[314317268,1708179041470,-45959.99770874,0.00036389,2]
[314317269,1708179041480,-45959.99770874,0.00036389,2]
[314317270,1708179041489,-45959.99770874,0.00036389,2]
[314317271,1708179041498,-153.23266023,0.00036454,2]
[314317272,1708179041507,-40346.90677439,0.000365,7]
[314317273,1708179041517,-6562.20860428,0.000368,2]
[314317274,1708179041526,-2126.0,0.000368,2]
[314317275,1708179041537,-11486.0,0.000368,2]
[314317276,1708179041546,-173.33,0.00036836,120]
[314317277,1708179041554,-156.4,0.00036881,2]
[314317278,1708179041563,-2551.43713194,0.00036943,2]
[314317279,1708179041573,-155.0,0.00036987,2]
[314317280,1708179041582,-4267.1691272,0.00037,14]
[314317281,1708179041591,-6656.05,0.00037075,2]
[314317282,1708179041600,-151.0,0.00037094,7]
[314317283,1708179041609,-24626.35161863,0.00037397,2]
[314317284,1708179041618,-93676.95,0.00037399,2]
[314317285,1708179041627,-114494.05,0.00037399,2]
[314317286,1708179041637,-178927.78297634,0.000374,5]
[314317287,1708179041646,-202.63,0.000374,7]
[314317288,1708179041655,-759.75542771,0.000375,5]
[314317289,1708179041665,-1297.4,0.00037588,2]
[314317290,1708179041675,-180.0,0.00037671,2]
[314317291,1708179041685,-21724.07687651,0.000377,3]
[314317292,1708179041694,-156.4,0.00037724,2]
[314317293,1708179041703,-162.8658829,0.000378,2]
[314317294,1708179041712,-1114.90861327,0.000378,8]
[314317295,1708179041721,-861.46533908,0.00037804,2]
[314317296,1708179041730,-2360.74293064,0.00037804,2]
[314317297,1708179041739,-225.30506264,0.00037804,2]
[314317298,1708179041748,-151.0,0.00037851,4]
[314317299,1708179041757,-209.18429795,0.0003787,7]
[314317300,1708179041767,-150.0,0.00037876,30]
[314317301,1708179041776,-172384.46133041,0.00037877,2]
[314317302,1708179041786,-150.0,0.00037879,30]
[314317303,1708179041795,-2379093.32257465,0.0003788,2]
[314317304,1708179041804,-15663.82651064,0.0003788,2]
[314317305,1708179041814,-150.0,0.00037899,30]
[314317306,1708179041823,-618695.157452,0.000379,3]
[314317307,1708179041832,-45959.99770874,0.00037904,2]
[314317308,1708179041841,-215.98921406,0.00038,4]
[314317309,1708179041850,-153.23266023,0.00038132,2]
[314317310,1708179041859,-6656.05,0.00038352,2]
[314317311,1708179041869,-151.59,0.00038356,2]
[314317312,1708179041877,-343.18,0.00038356,15]
[314317313,1708179041887,-201.59,0.00038356,2]
[314317314,1708179041895,-155.0,0.00038357,2]
[314317315,1708179041904,-1000.0,0.00038558,2]
[314317316,1708179041913,-156.4,0.00038567,2]
[314317317,1708179041922,-151.0,0.00038624,2]
[314317318,1708179041932,-43448.06,0.000387,4]
[314317319,1708179041941,-1000.0,0.00038845,2]
[314317320,1708179041949,-325.84,0.0003889,3]
[314317321,1708179041958,-165.40063134,0.00038899,30]
[314317322,1708179041967,-4194601.81887735,0.000389,3]
[314317323,1708179041976,-398.90005479,0.000389,2]
[314317324,1708179041985,-418.27758908,0.000389,2]
[314317325,1708179041997,-15663.82651064,0.000389,2]
[314317326,1708179042006,-6902.9973314,0.0003897,2]
[314317327,1708179042014,-753.59,0.0003899,10]
[314317328,1708179042023,-1907.83291422,0.00039,2]
[314317329,1708179042034,-32665.2836308,0.00039,40]
[314317330,1708179042044,-433.74,0.0003926,2]
[314317331,1708179042054,-156.4,0.0003941,2]
[314317332,1708179042064,-18922.0,0.00039472,2]
[314317333,1708179042075,-1000.0,0.000395,2]
[314317334,1708179042085,-6656.05,0.0003963,2]
[314317335,1708179042094,-43448.06,0.000397,4]
[314317336,1708179042103,-155.0,0.00039727,2]
[314317337,1708179042113,-45959.99770874,0.0003978,2]
[314317338,1708179042122,-153.23266023,0.0003981,5]
[314317339,1708179042131,-1297.4,0.00039852,2]
[314317340,1708179042139,-726.00250677,0.00039852,10]
[314317341,1708179042148,-5244347.64035999,0.0003988,2]
[314317342,1708179042158,-15663.82651064,0.0003988,2]
[314317343,1708179042167,-500.0,0.00039999,31]
[314317344,1708179042176,-238.50154243,0.00039999,31]
[314317345,1708179042185,-308.68878561,0.00039999,31]
[314317346,1708179042194,-500.0,0.00039999,31]
[314317347,1708179042203,-151.87339131,0.00039999,31]
[314317348,1708179042212,-58644.62819017,0.0004,30]
[314317349,1708179042220,-255.0,0.0004,12]
[314317350,1708179042230,-255.0,0.0004,12]
[314317351,1708179042238,-255.0,0.0004,12]
[314317352,1708179042248,-795.2,0.0004,2]
[314317353,1708179042257,-150.1,0.0004,2]
[314317354,1708179042266,-255.0,0.0004,12]
[314317355,1708179042275,-155.0,0.0004,4]
[314317356,1708179042286,-255.0,0.0004,12]
[314317357,1708179042294,-156.4,0.00040253,2]
[314317358,1708179042304,-1112.67504707,0.00040268,5]
[314317359,1708179042313,-199.42,0.000406,2]
[314317360,1708179042323,-152.0,0.000407,7]
[314317361,1708179042332,-433.74,0.00040733,2]
[314317362,1708179042341,-66019.60119702,0.00040997,2]
[314317363,1708179042350,-23017.94119475,0.00040997,32]
[314317364,1708179042359,-1103.54391099,0.00040997,3]
[314317365,1708179042368,-15931.47244674,0.00040997,2]
[314317366,1708179042377,-275.15622716,0.00040997,30]
[314317367,1708179042386,-216.5760994,0.00040997,30]
[314317368,1708179042395,-155.56468996,0.00040997,120]
[314317369,1708179042404,-5358.94753529,0.00040997,2]
[314317370,1708179042413,-283.32387974,0.00040997,2]
[314317371,1708179042422,-468.77508963,0.00040997,2]
[314317372,1708179042431,-159.35404023,0.00040997,30]
[314317373,1708179042440,-155.39982316,0.00040997,2]
[314317374,1708179042449,-385.13127339,0.00040997,2]
[314317375,1708179042458,-17905.96232048,0.00040997,2]
[314317376,1708179042467,-5095.71440095,0.00040997,4]
[314317377,1708179042476,-32666.56886121,0.00040997,120]
[314317378,1708179042485,-201.59239623,0.00040997,120]
[314317379,1708179042494,-466.0482353,0.00040997,2]
[314317380,1708179042503,-656.47572142,0.00040997,2]
[314317381,1708179042512,-311.01975504,0.00040997,2]
[314317382,1708179042521,-1224.17933206,0.00040997,4]
[314317383,1708179042530,-2543.56387118,0.00040997,2]
[314317384,1708179042540,-9008.17816563,0.00040997,4]
[314317385,1708179042548,-11360.21359141,0.00040997,7]
[314317386,1708179042558,-3983.18835857,0.00040997,120]
[314317387,1708179042567,-5514.42836242,0.00040997,13]
[314317388,1708179042575,-2644.91665641,0.00040997,2]
[314317389,1708179042585,-6224.69585873,0.00040997,4]
[314317390,1708179042594,-156.29488104,0.00040997,2]
[314317391,1708179042603,-17186.66812909,0.00040997,2]
[314317392,1708179042612,-1808.63572407,0.00040997,2]
[314317393,1708179042622,-169.71709592,0.00040997,120]
[314317394,1708179042630,-155.29370094,0.00040997,2]
[314317395,1708179042640,-20009.47953652,0.00040997,2]
[314317396,1708179042649,-306.59704943,0.00040997,120]
[314317397,1708179042658,-701.82634713,0.00040997,30]
[314317398,1708179042668,-163.94316074,0.00040997,120]
[314317399,1708179042677,-151.34673705,0.00040997,30]
[314317400,1708179042687,-158.00946671,0.00040997,60]
[314317401,1708179042697,-437.6563897,0.00040997,14]
[314317402,1708179042707,-4451.18179673,0.00040997,4]
[314317403,1708179042716,-5591.19704119,0.00040997,120]
[314317404,1708179042726,-38072.35991752,0.00040997,14]
[314317405,1708179042735,-199.26055783,0.00040997,30]
[314317406,1708179042744,-807.2490428,0.00040997,2]
[314317409,1708179042880,-29000.0,0.00040997,4]
[314317410,1708179042889,-5630.66900529,0.00040997,2]
[314317411,1708179042898,-43476.0,0.00040997,4]
[314317412,1708179042907,-150.1,0.00041,2]
[314317413,1708179042916,-2500.0,0.00041095,2]
[314317414,1708179042925,-750.0,0.00041095,2]
[314317415,1708179042934,-198.42759781,0.00041095,7]
[314317416,1708179042943,-269.19964425,0.00041095,7]
[314317417,1708179042952,-280.34184015,0.00041095,7]
[314317418,1708179042961,-209.16909667,0.00041095,7]
[314317419,1708179042970,-156.4,0.00041096,2]
[314317420,1708179042980,-1000.0,0.00041096,12]
[314317421,1708179042990,-1000.0,0.00041096,12]